Cogmind - Beta 15 @@@ ROGUE MODE // 2025.10.07 @ 10:18:48 Player: DietSnapple Result: Self-destructed Performance ------------- Evolutions (2) 1000 Regions Visited (5) 1000 Robots Destroyed (22) 110 Value Destroyed (543) 543 Prototype IDs (25) 500 Alien Tech Used (0) 0 Bonus (339) 339 TOTAL SCORE: 3492 Bonus ------- Follower Combat Kills 39 Aligned with FarCom 300 Cogmind --------- Core Integrity 102/550 Matter 248/500 Energy 40/100 System Corruption 0% Temperature Cool (-100) Movement Core (300) Ox5 Location -8/Materials Parts ------- > --- POWER (1) -------- (None) > --- PROPULSION (4) --- (None) > --- UTILITY (4) ------ Cryofiber Web Disposable Heat Sink Medium Storage Unit High-capacity Matter Pod > --- WEAPON (2) ------- (None) > --- INVENTORY (10) --- (None) Peak State ------------ > --- POWER ------------ (None) > --- PROPULSION ------- (None) > --- UTILITY ---------- Cryofiber Web Disposable Heat Sink Medium Storage Unit High-capacity Matter Pod > --- WEAPON ----------- YOLO Cannon > --- INVENTORY -------- (None) [Rating: 27] Favorites ----------- Power Ion Engine Engine Ion Engine Propulsion Light Treads Treads Light Treads Wheel Wheel Hover Unit Airjet Flight Unit Flight Unit Utility Large Storage Unit Device Cooling System Storage Large Storage Unit Weapon Light Assault Rifle Energy Gun Small Laser Energy Cannon EM Pulse Cannon Ballistic Gun Light Assault Rifle Special Weapon Mining Laser Build | -11 -10 -10 -10 -9 -8 ------- Run | Yrd Mat Min Exi Min Mat Slots Evolved 4 | . . . . . 4 Power . | . . . . . . Propulsion 2 | . . . . . 2 Utility 2 | . . . . . 2 Weapon . | . . . . . . Parts Attached 27 | 7 11 2 . . 7 Power 3 | 1 2 . . . . Engine 3 | 1 2 . . . . Core . | . . . . . . Reactor . | . . . . . . Propulsion 7 | 3 1 1 . . 2 Treads 2 | 2 . . . . . Leg . | . . . . . . Wheel 3 | 1 1 . . . 1 Hover 1 | . . 1 . . . Flight 1 | . . . . . 1 Utility 9 | 1 5 . . . 3 Device 4 | . 2 . . . 2 Storage 5 | 1 3 . . . 1 Processor . | . . . . . . Hackware . | . . . . . . Protection . | . . . . . . Artifact . | . . . . . . Weapon 8 | 2 3 1 . . 2 Energy Gun 2 | . 2 . . . . Energy Cannon 3 | . . 1 . . 2 Ballistic Gun 2 | 2 . . . . . Ballistic Cannon . | . . . . . . Launcher . | . . . . . . Special Weapon 1 | . 1 . . . . Impact Weapon . | . . . . . . Slashing Weapon . | . . . . . . Piercing Weapon . | . . . . . . Special Melee Weapon . | . . . . . . Unidentified Prototypes . | . . . . . . Parts Lost 12 | . 7 . . . 5 Power 1 | . 1 . . . . Propulsion 6 | . 3 . . . 3 Utility 1 | . . . . . 1 Weapon 4 | . 3 . . . 1 Highest Loss Streak 5 | . 5 . . . 3 To Critical Strikes . | . . . . . . Average Backups 6 | 1 7 5 4 4 3 Power . | . 1 1 . . . Propulsion . | . . . . . . Utility 3 | . 4 3 3 3 2 Weapon 1 | . 1 1 1 1 . Tool/Special . | . . . . . . Unused Backups 1 | . 1 . . . . Power . | . . . . . . Propulsion . | . . . . . . Utility 1 | . 1 . . . . Weapon . | . . . . . . Tool/Special . | . . . . . . Average Slot Usage (%) 66 | . 84 31 42 42 24 Engine 9 | . 13 . . . . Treads 12 | . 18 . . . . Wheel 3 | . 4 . . . . Hover 2 | . . 8 14 14 4 Device 7 | . 4 14 14 14 9 Storage 9 | . 14 . . . 1 Energy Gun 5 | . 8 . . . . Energy Cannon 2 | . . 9 14 14 5 Ballistic Gun 12 | . 18 . . . . Peak Build Rating 27 | 6 9 9 10 10 27 Average Rating 7 | 3 6 5 8 10 10 On Entrance 6 | . 6 2 8 10 10 Naked Turns 13 | . 1 . . . 12 Heaviest Build 31 | 13 31 8 8 8 19 Greatest Support 40 | 40 40 8 8 8 10 Greatest Overweight (x) 7 | . 7 2 . . 4 Average Overweight (x) . | . 1 . . . . Largest Inventory Capacity 15 | 8 15 10 5 5 10 Average Capacity 11 | 6 14 5 5 5 5 Most Carried 10 | 3 10 5 5 5 5 Average Carried 6 | 1 7 4 4 5 4 Final Capacity 10 | 8 5 5 5 5 10 Final Carried 5 | 3 5 5 5 5 . Class Distribution -------------------- 100% | Mutant Dominant Class ---------------- Mutant | -10/Materials Mutant | -10/Mines Mutant | -10/Exiles Mutant | -9/Mines Mutant | -8/Materials Resources | -11 -10 -10 -10 -9 -8 ----------- Run | Yrd Mat Min Exi Min Mat Matter Collected 763 | 242 442 50 . . 29 Remotely . | . . . . . . Salvage Created 681 | . 640 12 . . 29 Parts 38 | . 34 2 . . 2 Haulers Intercepted . | . . . . . . Recyclers Shooed . | . . . . . . Parts Field Recycled . | . . . . . . Retrieved Matter . | . . . . . . Parts Self-Destructed . | . . . . . . Prevented . | . . . . . . Kills | -11 -10 -10 -10 -9 -8 ------- Run | Yrd Mat Min Exi Min Mat Combat Hostiles Destroyed 19 | . 19 . . . . Guns 19 | . 19 . . . . Classes Destroyed 4 | . 3 1 . . . Worker 2 | . . 1 . . 1 Operator 1 | . 1 . . . . Swarmer 6 | . 6 . . . . Grunt 13 | . 13 . . . . Best Kill Streak 5 | . 5 1 . . 1 Combat Bots Only 5 | . 5 . . . . Max Kills in Single Turn 1 | . 1 1 . . 1 Gunslinging . | . . . . . . Exploded . | . . . . . . Melee . | . . . . . . Uniques/NPCs Destroyed . | . . . . . . Combat | -11 -10 -10 -10 -9 -8 -------- Run | Yrd Mat Min Exi Min Mat Hostile Shots Fired 218 | . 121 . . . 97 Missed 53 | . 26 . . . 27 Hits 165 | . 95 . . . 70 Projectile 165 | . 95 . . . 70 Critical Strikes 1 | . . . . . 1 Damage Taken 2071 | . 1029 24 . . 1018 Core 696 | . 224 24 . . 448 Absorbed by Shields . | . . . . . . Core Remaining (%) 50 | 100 . . . . . Volleys Fired 81 | . 74 3 . . 4 Largest 2 | . 2 1 . . 1 Hottest 100 | . 80 63 . . 100 Shots Fired 154 | . 146 3 1 . 4 Gun 146 | . 146 . . . . Cannon 8 | . . 3 1 . 4 Launcher . | . . . . . . Special . | . . . . . . Kinetic 76 | . 76 . . . . Thermal 72 | . 70 . . . 2 Explosive . | . . . . . . Electromagnetic 6 | . . 3 1 . 2 Robot Hit Streak 22 | . 22 10 . . 1 Robot Miss Streak 5 | . 5 1 . . 2 Penetration Max . | . . . . . . Secondary Targets 3 | . 3 . . . . Max Gunslinging Chain 1 | . 1 . . . . Shots Hit Robots 100 | . 96 2 . . 2 Core Hits 42 | . 40 1 . . 1 Critical Kills . | . . . . . . Critical Parts Destroyed . | . . . . . . Critical Strikes . | . . . . . . Melee Attacks . | . . . . . . Impact . | . . . . . . Slashing . | . . . . . . Piercing . | . . . . . . Sneak Attacks . | . . . . . . Combat Hostiles . | . . . . . . Follow-up Attacks . | . . . . . . Damage Inflicted 1624 | . 1093 53 . . 478 Guns 1078 | . 1078 . . . . Cannons 175 | . . 53 . . 122 Explosions 356 | . . . . . 356 Melee . | . . . . . . Ramming 15 | . 15 . . . . Kinetic 448 | . 448 . . . . Thermal 1083 | . 630 . . . 453 Explosive . | . . . . . . Electromagnetic 78 | . . 53 . . 25 Impact . | . . . . . . Slashing . | . . . . . . Piercing . | . . . . . . Highest Corruption 2 | . 2 2 2 2 . Average Corruption 1 | . 1 2 2 2 . Corruption Purged . | . . . . . . Corruption Blocked . | . . . . . . Effects 8 | . 2 3 3 . . Message Errors 4 | . 1 2 1 . . Matter Fused 2 | . 1 1 . . . Energy Discharges 1 | . . . 1 . . Misfires 1 | . . . 1 . . Overload Shots . | . . . . . . Overflow Damage 47 | . . . . . 47 Projectiles 47 | . . . . . 47 Explosions . | . . . . . . Melee . | . . . . . . Knockbacks . | . . . . . . Impact . | . . . . . . Kinetic . | . . . . . . Secondary . | . . . . . . Self-Inflicted Damage 6 | . 6 . . . . Shots . | . . . . . . Rammed 4 | . 4 . . . . Targets Rammed 4 | . 4 . . . . Kicked . | . . . . . . Crushed . | . . . . . . Highest Temperature 21 | . 21 . . . . Average Temperature 7 | . 7 . . . . Received Heat Transfer 630 | . 414 . . . 216 Siege Activations . | . . . . . . Martial Activations . | . . . . . . Shielding Activations . | . . . . . . Robots Disrupted . | . . . . . . Combat Hostiles . | . . . . . . Robots Corrupted . | . . . . . . Combat Hostiles . | . . . . . . Parts Fried . | . . . . . . Impact Corruptions . | . . . . . . Robots Melted . | . . . . . . Combat Hostiles . | . . . . . . Parts Melted 3 | . 3 . . . . Heat Transferred 1905 | . 1425 . . . 480 Parts Sabotaged . | . . . . . . Parts Stolen . | . . . . . . Parts Stripped . | . . . . . . Power Chain Reactions . | . . . . . . Alert | -11 -10 -10 -10 -9 -8 ------- Run | Yrd Mat Min Exi Min Mat Maximum Alert Level 1 | . 1 . . . . Low Security (%) 87 | 100 81 100 . 100 100 Level 1 12 | . 18 . . . . Level 2 . | . . . . . . Level 3 . | . . . . . . Level 4 . | . . . . . . Level 5 . | . . . . . . High Security . | . . . . . . Max Security . | . . . . . . Peak Influence 253 | . 253 61 . . 91 Initial 61 | . . 61 . . . Average 51 | . 69 18 . . 18 Influence Increases 739 | . 518 57 . . 164 Destroy 0b10 Robot/C 420 | . 380 40 . . . Destroy 0b10 Robot/NC 15 | . 5 5 . . 5 Destroy Leader 70 | . 60 10 . . . Allied During Kill 2 | . . 2 . . . Successful Hack 65 | . 43 . . . 22 Disable Machine 15 | . . . . . 15 Destroy Structure 17 | . . . . . 17 Lose Combat Pursuer 135 | . 30 . . . 105 Influence Decreases 682 | . 361 214 . . 107 Entered New Map 96 | . . 96 . . . Time Decay 486 | . 301 98 . . 87 Lost Part 80 | . 60 . . . 20 Lost Ally 20 | . . 20 . . . Squads Dispatched 6 | . 5 . . . 1 Investigation 4 | . 4 . . . . Extermination . | . . . . . . Reinforcement 2 | . 1 . . . 1 Assault . | . . . . . . Garrison . | . . . . . . Intercept . | . . . . . . Searches Triggered . | . . . . . . Construction Impeded . | . . . . . . Haulers Reinforced . | . . . . . . Active Scanning Responses . | . . . . . . Cargo Convoy Interrupts . | . . . . . . Stealth | -11 -10 -10 -10 -9 -8 --------- Run | Yrd Mat Min Exi Min Mat Distress Signals 4 | . 2 1 . . 1 Communications Jammed . | . . . . . . Distress Signals . | . . . . . . Times Spotted 62 | . 46 1 . . 15 Peak Tracking Total 7 | . 5 1 . . 7 Tactical Retreats 5 | . 2 . . . 3 Traps | -11 -10 -10 -10 -9 -8 ------- Run | Yrd Mat Min Exi Min Mat Traps Triggered 6 | . 5 1 . . . Indirectly . | . . . . . . Trap Hack Attempts . | . . . . . . Triggered . | . . . . . . Disarmed . | . . . . . . Reprogrammed . | . . . . . . Reused . | . . . . . . Traps Extracted . | . . . . . . Installed . | . . . . . . Triggered . | . . . . . . Machines | -11 -10 -10 -10 -9 -8 ---------- Run | Yrd Mat Min Exi Min Mat Machines Disabled 1 | . . . . . 1 Max in Single Turn 1 | . . . . . 1 Machines Repaired . | . . . . . . Machines Dismantled . | . . . . . . Machines Sabotaged . | . . . . . . Overloaded Fab Kills . | . . . . . . Hacking | -11 -10 -10 -10 -9 -8 --------- Run | Yrd Mat Min Exi Min Mat Machines Accessed 12 | . 7 1 1 . 3 Terminals 10 | . 7 . . . 3 Fabricators . | . . . . . . Repair Stations . | . . . . . . Recycling Units . | . . . . . . Scanalyzers . | . . . . . . Garrison Access . | . . . . . . Total Hacks 32 | . 22 1 1 . 8 Successful 16 | . 8 1 1 . 6 Failed 16 | . 14 . . . 2 Catastrophic 6 | . 5 . . . 1 Database Lockouts . | . . . . . . Manual 31 | . 22 . 1 . 8 Terminals 30 | . 22 . . . 8 Fabricators . | . . . . . . Repair Stations . | . . . . . . Recycling Units . | . . . . . . Scanalyzers . | . . . . . . Garrison Access . | . . . . . . Terminal Hacks 10 | . 4 1 1 . 4 Prototype ID Bank 1 | . . . . . 1 Open Door 1 | . . 1 . . . Branch Access Points 1 | . 1 . . . . Hauler Manifests 1 | . . . . . 1 Zone Layout 5 | . 3 . . . 2 Proto ID Catalog 1 | . . . 1 . . Fabricator Hacks . | . . . . . . Repair Station Hacks . | . . . . . . Recycling Unit Hacks . | . . . . . . Scanalyzer . | . . . . . . Garrison Access Hacks . | . . . . . . Unauthorized Hacks 6 | . 4 . . . 2 Terminals 6 | . 4 . . . 2 Assimilate 1 | . . . . . 1 Botnet 4 | . 3 . . . 1 Operators 1 | . 1 . . . . Fabricators . | . . . . . . Repair Stations . | . . . . . . Recycling Units . | . . . . . . Scanalyzers . | . . . . . . Garrison Access . | . . . . . . Data Cores Recovered . | . . . . . . Used . | . . . . . . Hacking Detections 8 | . 5 . . . 3 Full Trace Events 1 | . 1 . . . . Feedback Events . | . . . . . . Feedback Blocked . | . . . . . . Robot Schematics Acquired . | . . . . . . Robots Built . | . . . . . . Authchips . | . . . . . . Time . | . . . . . . Total Robot Build Rating . | . . . . . . Part Schematics Acquired . | . . . . . . Parts Built . | . . . . . . Authchips . | . . . . . . Time . | . . . . . . Total Part Build Rating . | . . . . . . Parts Repaired . | . . . . . . Time . | . . . . . . Parts Recycled . | . . . . . . Recycled Matter . | . . . . . . Retrieved Matter . | . . . . . . Retrieved Components . | . . . . . . Parts Scanalyzed . | . . . . . . Part Schematics Acquired . | . . . . . . Parts Damaged . | . . . . . . Bothacking | -11 -10 -10 -10 -9 -8 ------------ Run | Yrd Mat Min Exi Min Mat Used RIF Installer . | . . . . . . Robots Hacked . | . . . . . . Non-combat . | . . . . . . Combat . | . . . . . . Robot Hacks Applied . | . . . . . . Relay Couplers Released . | . . . . . . Fabnet Peak Effective % . | . . . . . . Robots Rewired . | . . . . . . Allies Hacked . | . . . . . . Hacks Repelled . | . . . . . . Allies | -11 -10 -10 -10 -9 -8 -------- Run | Yrd Mat Min Exi Min Mat Total Allies 2 | . . 2 . . . Largest Group 1 | . . 1 . . . Highest-Rated Group 31 | . . 31 . . . Highest-Rated Ally 31 | . . 31 . . . Total Orders . | . . . . . . Ally Attacks 5 | . . 5 . . . Total Damage 42 | . . 42 . . . Kills 2 | . . 2 . . . Allies Corrupted . | . . . . . . Allies Melted . | . . . . . . Intel | -11 -10 -10 -10 -9 -8 ------- Run | Yrd Mat Min Exi Min Mat Active Infowar (turns) . | . . . . . . Robot Analysis Total . | . . . . . . Derelict Logs Recovered 1 | . . . . 1 . Drone Launches . | . . . . . . Drone Recoveries . | . . . . . . Exploration | -11 -10 -10 -10 -9 -8 ------------- Run | Yrd Mat Min Exi Min Mat Turns Passed 2788 | 170 1777 293 146 36 366 Spaces Moved 2398 | 147 975 500 238 60 478 Core 388 | 1 45 203 . . 139 Treads 585 | 50 535 . . . . Legs . | . . . . . . Wheels 516 | 96 395 . . . 25 Hover 754 | . . 297 238 60 159 Flight 155 | . . . . . 155 Fastest Speed 40 | 50 50 50 60 60 40 Average Speed 99 | 107 152 56 60 60 55 Slowest Speed 400 | 160 400 150 60 60 360 Overloaded Moves . | . . . . . . Propulsion Burnouts . | . . . . . . Robots Hopped 4 | . . . . . 4 Potential Cave-ins . | . . . . . . Cave-ins Triggered . | . . . . . . Exploration Rate (%) 44 | 5 90 65 60 21 27 Regions Visited 5 Branch Regions 3 Pre-discovered Areas . | . . . . . . Known Exits Taken 1 | . 1 . . . . Unknown Exits Taken 4 | 1 . 1 1 1 . Scrap Searched . | . . . . . . Spaces Dug . | . . . . . . Terrain Destroyed 16 | . . . . . 16 Melee . | . . . . . . Projectile . | . . . . . . AOE 16 | . . . . . 16 Terrain Rammed . | . . . . . . Walls Destroyed . | . . . . . . Machines Disabled . | . . . . . . Actions | -11 -10 -10 -10 -9 -8 --------- Run | Yrd Mat Min Exi Min Mat Total 2651 | 156 1121 506 241 59 568 Wait 107 | . 43 . . . 64 Move 2385 | 146 974 499 237 59 470 Hop 4 | . . . . . 4 Pick Up 10 | 3 5 . 1 . 1 Fast Attach 20 | 6 6 2 . . 6 Attach 15 | . 5 1 . . 9 Detach 10 | . 4 1 . . 5 Swap 5 | 1 4 . . . . Drop 9 | . 2 . 2 . 5 Fire 81 | . 74 3 . . 4 Melee . | . . . . . . Ram 4 | . 4 . . . . Kick . | . . . . . . Crush . | . . . . . . Escape Stasis . | . . . . . . Rewire 1 | . . . 1 . . Trap . | . . . . . . Miscellaneous . | . . . . . . Route ------- -11/Scrapyard -10/Materials (discovered 5 exits: [*Mat x3] / *Min / [*Sub]) -10/Mines -10/Exiles -9/Mines -8/Materials History --------- Turn | Location | Event 12 | -11/Scrapyard | Discovered new exit (range 13) 171 | -11/Scrapyard | Entered Materials 300 | -10/Materials | Build established: Mutant 639 | -10/Materials | Discovered new exit (range 9) 1194 | -10/Materials | Discovered new exit (range 5) 1405 | -10/Materials | Discovered new exit (range 11) 1528 | -10/Materials | Identified exit to Mines 1890 | -10/Materials | Discovered new exit (range 13) 1903 | -10/Materials | Discovered new exit (range 10) 1907 | -10/Materials | Core integrity fell below 50% 1921 | -10/Materials | Released all parts (3) 1924 | -10/Materials | Core integrity fell below 20% 1948 | -10/Materials | Entered Mines 1952 | -10/Mines | Lost 5 parts (1p2n2w) 1956 | -10/Mines | Assembled infested the area 2047 | -10/Mines | Met a Derelict who couldn't figure out how to use a Trap Extractor 2237 | -10/Mines | Deemed a non-threat by the Exiles lab entrance 2238 | -10/Mines | Discovered new exit (range 5) 2241 | -10/Mines | Entered Exiles 2258 | -10/Exiles | Met 8R-AWN 2268 | -10/Exiles | Met EX-HEX 2292 | -10/Exiles | Met EX-BIN 2301 | -10/Exiles | Aligned with FarCom system 2301 | -10/Exiles | Given EX-Vault access code 2319 | -10/Exiles | Opened EX-Vault 2328 | -10/Exiles | Found YOLO Cannon 2340 | -10/Exiles | Warned to stay clear of 0b10 Research branches 2357 | -10/Exiles | Met EX-DEC 2381 | -10/Exiles | Discovered new exit (range 10) 2387 | -10/Exiles | Left Exiles lab with YOLO Cannon 2387 | -10/Exiles | Entered Mines 2401 | -9/Mines | Learned Materials interactive machine intel 2414 | -9/Mines | Discovered new exit (range 16) 2423 | -9/Mines | Entered Materials 2423 | -8/Materials | Evolved 4 slots: Propulsion x2, Utility x2 2424 | -8/Materials | Loaded intel: 19 interactive machine locations 2645 | -8/Materials | Lost 3 parts (2n1u) 2766 | -8/Materials | Core integrity fell below 50% 2789 | -8/Materials | Core integrity fell below 20% 2789 | -8/Materials | Self-destructed Last Messages --------------- 02650_ Slug penetrates Wall. 02656_ Penetrated by Slug. 02679_ K-01 Serf collects debris. 02689_ K-01 Serf cleans the Integration Channel. 02694_ K-01 Serf collects debris. 02702_ W-25 Informer sends out distress signal. 02703_ Integration Channel disabled. 02709_ Slug penetrates K-01 Serf. 02709_ K-01 Serf destroyed. 02710_ K-01 Serf collects debris. 02710_ U-05 Engineer lays Concrete. 02710_ Flight Unit destroyed. 02712_ U-05 Engineer lays Concrete. 02716_ U-05 Engineer builds a Wall. 02716_ U-05 Engineer lays Concrete. 02745_ Penetrated by Slug. 02762_ Slug penetrates Wall. 02776_ Destroyed Lgt. Nuclear Core. 02776_ Penetrated by Slug. 02788_ YOLO Cannon destroyed. Map ----- +----------------------------------------------------+ | | | | | | | | | | | | | | | | | | | ?????????????????????????????????????????????????? | | ?????????????????????????????????????????????????? | | ?????????????????????????????????????????????????? | | ?????????????????????????????????????????????????? | | ?????????????????????????????????????????????????? | | ?????????????????????????????????????????????????? | | ?????????????????????????????????????????????????? | | ?????????????????????????????#####???????????????? | | ?????????????????????????????# #???????????????? | | ?????????????????????????????# #???????????????? | | ?????????????????????????????# #???????????????? | | ?????????????????????????????# #?????????????#?? | | ?????????????????????????????# #?????????????# ? | | ?????????????????????????????# #?????????????# ? | | ?????????????????????????????# #?????????????# " | | #????????????????????######### #??????######## " | | #????????????????????# @ ## #??????? """ # " | | #????????????????????# T ## #??????? "R" # | | #????????????????????# ## #??????# " " # | | #????????????????????# ## #??????# # | | #????????????????????# ;# #??????# # | | ?????????????????????# g Y## ##?????# # | | #######################;;;;;# ##########+##### | | h gY | | T | | | | ###########+#############+### ##########+##### | | ####### #????? ###+######???# #??? | | # #????? # #???# #??? | | # #????# # """ #???# #### | | # % #????# # """ #???# # | | # ! #????# # """ ""#???# # [ | | ####### #????# # ""#???# # | | + #????######## """ T"#???# # "S | | #"""" #????# # """ ""#???# # "" | | #/#""""""########????# """ # """ ""#???# # " | | # ] #????????# "G" # #???######! | | # #????????# " " ##########????????#### | | # #????????# #????????????????????? | | # "" #????????# """ #????????????????????? | | # "" #????????# """ #????????????????????? | +----------------------------------------------------+ Best States ------------- Heat Dissipation 53 Coolant Potential 50 Energy Generation 10 Energy Capacity 250 Matter Stores 300 Matter Capacity 500 Sight Range 16 Terrain Scan Density 10 Base Temperature (-) 100 Evasion (%) 62 Recoil Reduction 2 Item Schematics ----------------- None Robot Schematics ------------------ None Fabricated ------------ Nothing Repaired ---------- Nothing Alien Tech Used ----------------- None Achievements -------------- None Challenges ------------ None Game ------ Seed MomentumColdThrower Manual? 0 Play Time 00:26:43 Cumulative 18.2 hours Start 2025.10.07 @ 09:44:55 End 2025.10.07 @ 10:18:48 Sessions 1 Manual Loads 0 Difficulty Rogue Special Mode None Game No. 53 Rogue 46 Adventurer 7 Explorer 0 Win Type - Total 0 Types 0/0/0/0/0/0/0/0/0/0 Lore% 4 Gallery% 19 Achievement% 19 Wizard Run 0 Options --------- Layout 0 ASCII 0 Keyboard 1 Movement Vi Keybinds 0 Fullscreen 1 Font 18/SmallcapsGlow Map View 112x50 Zoom Use 2% Tactical HUD 1 Map Filters NONE Filters NONE Steam 1 RUN: 81360adc-df70-4977-99de-705016b32015